Cogmind - Beta 16 @@@ ROGUE MODE // 2025.11.26 @ 08:26:57 Player: Sandwich Result: Destroyed by S-27 Virus with Autogun Performance ------------- Evolutions (1) 500 Regions Visited (5) 1000 Robots Destroyed (26) 130 Value Destroyed (642) 642 Prototype IDs (5) 100 Alien Tech Used (0) 0 Bonus (0) 0 TOTAL SCORE: 2372 Bonus ------- None Cogmind --------- Core Integrity 0/400 Matter 300/300 Energy 150/150 System Corruption 0% Temperature Cool (0) Movement Treading (200) Ox1 Location -6/Proximity Caves Parts ------- > --- POWER (1) -------- Light Angular Momentum Engine > --- PROPULSION (2) --- Light Treads Compact Wheel > --- UTILITY (4) ------ Heat Sink Large Storage Unit Structural Scanner Sensor Array > --- WEAPON (2) ------- Medium Laser Gatling Laser > --- INVENTORY (15) --- Light Treads Light Treads Airjet Gravmag System Makeshift Hover Unit Advanced Heat Sink Large Storage Unit Improved Terrain Scan Processor Light Armor Plating Improved Medium Armor Plating Hacking Suite Small Laser Heavy Laser Rocket Array CR-A16's Pointy Stick Peak State ------------ > --- POWER ------------ Light Angular Momentum Engine > --- PROPULSION ------- Light Treads Compact Wheel > --- UTILITY ---------- Heat Sink Large Storage Unit Structural Scanner Targeting Computer > --- WEAPON ----------- Medium Laser Gatling Laser > --- INVENTORY -------- Light Treads Light Treads Airjet Gravmag System Advanced Heat Sink Large Storage Unit Sensor Array Improved Terrain Scan Processor Light Armor Plating Improved Medium Armor Plating Hacking Suite Small Laser Heavy Laser Rocket Array CR-A16's Pointy Stick [Rating: 20] Favorites ----------- Power Ion Engine Engine Ion Engine Propulsion Light Treads Treads Light Treads Wheel Compact Wheel Utility Heat Sink Device Heat Sink Storage Large Storage Unit Processor Targeting Computer Hackware Hacking Suite Weapon Small Laser Energy Gun Small Laser Launcher Rocket Array Special Melee Weapon Improved Datajack Build | -11 -10 -9 -9 -7 -6 ------- Run | Yrd Mat Mat Min Zio Pro Slots Evolved 2 | . . 2 . . . Power . | . . . . . . Propulsion . | . . . . . . Utility 2 | . . 2 . . . Weapon . | . . . . . . Parts Attached 30 | 6 4 8 1 4 7 Power 5 | 1 1 1 . . 2 Engine 5 | 1 1 1 . . 2 Core . | . . . . . . Reactor . | . . . . . . Propulsion 8 | 2 . 2 1 1 2 Treads 5 | 1 . 1 1 . 2 Leg . | . . . . . . Wheel 3 | 1 . 1 . 1 . Hover . | . . . . . . Flight . | . . . . . . Utility 8 | 1 3 2 . . 2 Device 4 | . 1 1 . . 2 Storage 2 | 1 1 . . . . Processor 1 | . . 1 . . . Hackware 1 | . 1 . . . . Protection . | . . . . . . Artifact . | . . . . . . Weapon 9 | 2 . 3 . 3 1 Energy Gun 7 | 2 . 2 . 2 1 Energy Cannon . | . . . . . . Ballistic Gun . | . . . . . . Ballistic Cannon . | . . . . . . Launcher 1 | . . . . 1 . Special Weapon . | . . . . . . Impact Weapon . | . . . . . . Slashing Weapon . | . . . . . . Piercing Weapon . | . . . . . . Special Melee Weapon 1 | . . 1 . . . Unidentified Prototypes 1 | . . . . 1 . Parts Lost 8 | . 1 2 2 . 3 Power 3 | . . 1 . . 2 Propulsion 2 | . . . 1 . 1 Utility 1 | . 1 . . . . Weapon 2 | . . 1 1 . . Highest Loss Streak 3 | . 1 1 2 . 3 To Critical Strikes . | . . . . . . Average Backups 12 | 3 6 13 15 14 14 Power . | . 1 . 1 1 . Propulsion 4 | 2 4 4 5 5 4 Utility 4 | . . 4 7 6 6 Weapon 2 | . 1 3 2 2 3 Tool/Special . | . . . . . . Unused Backups 16 | . . 4 . 3 9 Power . | . . . . . . Propulsion 5 | . . 2 . 1 2 Utility 7 | . . . . 2 5 Weapon 3 | . . 1 . . 2 Tool/Special 1 | . . 1 . . . Average Slot Usage (%) 98 | . 98 99 97 99 93 Engine 10 | . 14 11 11 11 5 Treads 15 | . 14 11 11 20 10 Wheel 7 | . 14 11 8 1 11 Device 18 | . 3 21 22 22 22 Storage 11 | . 14 11 11 11 11 Processor 8 | . . 11 11 11 10 Hackware 1 | . 9 . . . . Energy Gun 22 | . 28 22 22 21 22 Peak Build Rating 20 | 6 9 12 11 15 20 Average Rating 10 | 4 8 10 10 11 14 On Entrance 7 | . 6 8 11 9 12 Avg Prop Armor Cover (%) 13 | 17 14 13 13 13 12 Naked Turns . | . . . . . . Heaviest Build 38 | 11 29 30 30 30 38 Greatest Support 40 | 20 16 20 40 40 20 Greatest Overweight (x) 2 | . 1 1 1 1 2 Average Overweight (x) . | . . 1 . . 1 Largest Inventory Capacity 15 | 8 15 15 15 15 15 Average Capacity 13 | 6 9 15 15 15 15 Most Carried 15 | 6 10 15 15 15 15 Average Carried 12 | 3 7 13 14 14 14 Final Capacity 15 | 8 15 15 15 15 15 Final Carried 15 | 6 10 15 14 15 15 Class Distribution -------------------- 100% | Mutant Dominant Class ---------------- Mutant | -10/Materials Mutant | -9/Materials Mutant | -9/Mines Mutant | -7/Zion Mutant | -6/Proximity Caves Resources | -11 -10 -9 -9 -7 -6 ----------- Run | Yrd Mat Mat Min Zio Pro Matter Collected 515 | 199 101 85 . 65 65 Remotely . | . . . . . . Salvage Created 1016 | . 217 626 . . 173 Parts 38 | . 9 26 . . 3 Haulers Intercepted 1 | . 1 . . . . Recyclers Shooed 2 | . . 2 . . . Parts Field Recycled . | . . . . . . Retrieved Matter . | . . . . . . Parts Self-Destructed 1 | . . . . . 1 Prevented . | . . . . . . Parts Restored . | . . . . . . Kills | -11 -10 -9 -9 -7 -6 ------- Run | Yrd Mat Mat Min Zio Pro Combat Hostiles Destroyed 22 | . 6 13 . . 3 Guns 21 | . 6 12 . . 3 Classes Destroyed 7 | . 3 4 . . . Tunneler 1 | . . 1 . . . Hauler 1 | . 1 . . . . Recycler 2 | . . 2 . . . Swarmer 10 | . 3 7 . . . Grunt 8 | . 3 2 . . 3 Brawler 1 | . . 1 . . . Sentry 3 | . . 3 . . . Best Kill Streak 6 | . 6 4 . . 2 Combat Bots Only 5 | . 5 4 . . 2 Max Kills in Single Turn 2 | . 2 1 . . 1 Gunslinging 1 | . 1 . . . . Exploded . | . . . . . . Melee . | . . . . . . Uniques/NPCs Destroyed . | . . . . . . Combat | -11 -10 -9 -9 -7 -6 -------- Run | Yrd Mat Mat Min Zio Pro Hostile Shots Fired 132 | . 25 60 9 . 38 Missed 28 | . 4 19 1 . 4 Hits 104 | . 21 41 8 . 34 Melee 4 | . . . 4 . . Projectile 100 | . 21 41 4 . 34 Critical Strikes 5 | . . 2 2 . 1 Damage Taken 1500 | . 220 489 180 . 611 Core 491 | . 85 153 74 . 179 Absorbed by Shields . | . . . . . . Regen/Repaired (Parts) 87 | . . 87 . . . Core Remaining (%) 83 | 100 66 . . . . Volleys Fired 75 | . 17 41 4 . 13 Largest 2 | . 2 2 2 . 2 Hottest 130 | . 90 90 90 . 130 Shots Fired 145 | . 33 82 8 . 22 Gun 145 | . 33 82 8 . 22 Cannon . | . . . . . . Launcher . | . . . . . . Special . | . . . . . . Kinetic . | . . . . . . Thermal 145 | . 33 82 8 . 22 Explosive . | . . . . . . Electromagnetic . | . . . . . . Robot Hit Streak 26 | . 14 26 4 . 18 Robot Miss Streak 3 | . 3 3 1 . 2 Penetration Max . | . . . . . . Secondary Targets 2 | . 2 . . . . Max Gunslinging Chain 1 | . 1 . . . . Shots Hit Robots 113 | . 23 65 6 . 19 Core Hits 51 | . 12 24 1 . 14 Critical Kills . | . . . . . . Critical Parts Destroyed . | . . . . . . Critical Strikes 11 | . 2 7 . . 2 Burn 11 | . 2 7 . . 2 Melee Attacks . | . . . . . . Impact . | . . . . . . Slashing . | . . . . . . Piercing . | . . . . . . Sneak Attacks . | . . . . . . Combat Hostiles . | . . . . . . Follow-up Attacks . | . . . . . . Damage Inflicted 1527 | . 269 824 68 . 366 Guns 1527 | . 269 824 68 . 366 Cannons . | . . . . . . Explosions . | . . . . . . Melee . | . . . . . . Ramming . | . . . . . . Kinetic . | . . . . . . Thermal 1527 | . 269 824 68 . 366 Explosive . | . . . . . . Electromagnetic . | . . . . . . Impact . | . . . . . . Slashing . | . . . . . . Piercing . | . . . . . . Highest Corruption . | . . . . . . Average Corruption . | . . . . . . Corruption Purged . | . . . . . . Corruption Blocked . | . . . . . . Overload Shots . | . . . . . . Overflow Damage . | . . . . . . Projectiles . | . . . . . . Explosions . | . . . . . . Melee . | . . . . . . Knockbacks . | . . . . . . Impact . | . . . . . . Kinetic . | . . . . . . Secondary . | . . . . . . Self-Inflicted Damage . | . . . . . . Shots . | . . . . . . Rammed 1 | . 1 . . . . Targets Rammed 1 | . 1 . . . . Kicked . | . . . . . . Crushed . | . . . . . . Highest Temperature 321 | . 321 24 3 . 162 Average Temperature 104 | . 145 10 3 . 70 Received Heat Transfer 462 | . 81 150 24 . 207 Effects 2 | . 2 . . . . Interference 2 | . 2 . . . . Siege Activations . | . . . . . . Martial Activations . | . . . . . . Shielding Activations . | . . . . . . Robots Disrupted . | . . . . . . Combat Hostiles . | . . . . . . Robots Corrupted . | . . . . . . Combat Hostiles . | . . . . . . Parts Fried . | . . . . . . Impact Corruptions . | . . . . . . Robots Melted 1 | . . 1 . . . Combat Hostiles 1 | . . 1 . . . Parts Melted 24 | . 4 13 . . 7 Heat Transferred 4820 | . 879 2699 186 . 1056 Parts Sabotaged . | . . . . . . Parts Stolen . | . . . . . . Parts Stripped . | . . . . . . Power Chain Reactions . | . . . . . . Alert | -11 -10 -9 -9 -7 -6 ------- Run | Yrd Mat Mat Min Zio Pro Maximum Alert Level . | . . . . . . Low Security (%) 100 | 100 100 100 100 . . Level 1 . | . . . . . . Level 2 . | . . . . . . Level 3 . | . . . . . . Level 4 . | . . . . . . Level 5 . | . . . . . . High Security . | . . . . . . Max Security . | . . . . . . Peak Influence 107 | . 107 88 31 . . Initial 31 | . . . 31 . . Average 24 | . 12 32 21 . . Influence Increases 630 | . 203 357 . . 70 Destroy 0b10 Robot/C 440 | . 120 260 . . 60 Destroy 0b10 Robot/NC 20 | . 5 15 . . . Destroy Leader 102 | . 32 60 . . 10 Successful Hack 68 | . 46 22 . . . Influence Decreases 630 | . 203 277 80 . 70 Entered New Map 49 | . . . 49 . . Time Decay 420 | . 103 257 20 . 40 Lost Part 61 | . . 20 11 . 30 Purge Threat 100 | . 100 . . . . Squads Dispatched 2 | . 1 1 . . . Investigation . | . . . . . . Extermination . | . . . . . . Reinforcement 2 | . 1 1 . . . Assault . | . . . . . . Garrison . | . . . . . . Intercept . | . . . . . . Searches Triggered . | . . . . . . Construction Impeded . | . . . . . . Haulers Reinforced . | . . . . . . Active Scanning Responses . | . . . . . . Cargo Convoy Interrupts . | . . . . . . Stealth | -11 -10 -9 -9 -7 -6 --------- Run | Yrd Mat Mat Min Zio Pro Distress Signals 3 | . . 3 . . . Communications Jammed . | . . . . . . Distress Signals . | . . . . . . Times Spotted 40 | . 9 21 2 . 8 Peak Tracking Total 7 | . 5 7 2 . 5 Tactical Retreats . | . . . . . . Traps | -11 -10 -9 -9 -7 -6 ------- Run | Yrd Mat Mat Min Zio Pro Traps Triggered 1 | . . 1 . . . Indirectly . | . . . . . . Trap Hack Attempts . | . . . . . . Triggered . | . . . . . . Disarmed . | . . . . . . Reprogrammed . | . . . . . . Reused . | . . . . . . Traps Extracted . | . . . . . . Installed . | . . . . . . Triggered . | . . . . . . Machines | -11 -10 -9 -9 -7 -6 ---------- Run | Yrd Mat Mat Min Zio Pro Machines Disabled . | . . . . . . Max in Single Turn . | . . . . . . Machines Repaired . | . . . . . . Machines Dismantled . | . . . . . . Machines Sabotaged . | . . . . . . Overloaded Fab Kills . | . . . . . . Hacking | -11 -10 -9 -9 -7 -6 --------- Run | Yrd Mat Mat Min Zio Pro Machines Accessed 14 | . 6 7 . 1 . Terminals 11 | . 6 5 . . . Fabricators . | . . . . . . Repair Stations 1 | . . 1 . . . Recycling Units . | . . . . . . Scanalyzers 1 | . . 1 . . . Garrison Access . | . . . . . . Total Hacks 59 | . 27 25 . 7 . Successful 41 | . 18 16 . 7 . Failed 17 | . 9 8 . . . Catastrophic 3 | . 2 1 . . . Database Lockouts 1 | . . 1 . . . Manual 34 | . 21 13 . . . Terminals 40 | . 27 13 . . . Fabricators . | . . . . . . Repair Stations 5 | . . 5 . . . Recycling Units . | . . . . . . Scanalyzers 7 | . . 7 . . . Garrison Access . | . . . . . . Terminal Hacks 12 | . 5 . . 7 . Part Schematic 7 | . . . . 7 . Prototype ID Bank 2 | . 2 . . . . Terminal Index 1 | . 1 . . . . Unreport Threat 1 | . 1 . . . . Dispatch Records 1 | . 1 . . . . Fabricator Hacks . | . . . . . . Repair Station Hacks 3 | . . 3 . . . Scan Component 2 | . . 2 . . . Repair 1 | . . 1 . . . Recycling Unit Hacks . | . . . . . . Scanalyzer 5 | . . 5 . . . Insert Component 1 | . . 1 . . . Analyze 1 | . . 1 . . . Retrieve Study 3 | . . 3 . . . Garrison Access Hacks . | . . . . . . Unauthorized Hacks 21 | . 13 8 . . . Terminals 21 | . 13 8 . . . Track 2 | . 2 . . . . Botnet 10 | . 5 5 . . . Operators 1 | . 1 . . . . Skim 8 | . 5 3 . . . Fabricators . | . . . . . . Repair Stations . | . . . . . . Recycling Units . | . . . . . . Scanalyzers . | . . . . . . Garrison Access . | . . . . . . Data Cores Recovered 1 | . 1 . . . . Used 1 | . 1 . . . . Hacking Detections 12 | . 6 6 . . . Full Trace Events . | . . . . . . Feedback Events . | . . . . . . Feedback Blocked . | . . . . . . Robot Schematics Acquired 3 | . . . . 3 . Robots Built . | . . . . . . Authchips . | . . . . . . Time . | . . . . . . Total Robot Build Rating . | . . . . . . Part Schematics Acquired 22 | . . 1 . 21 . Parts Built . | . . . . . . Authchips . | . . . . . . Time . | . . . . . . Total Part Build Rating . | . . . . . . Part Studies Acquired 3 | . . 3 . . . Parts Repaired 1 | . . 1 . . . Time 36 | . . 36 . . . Parts Recycled . | . . . . . . Recycled Matter . | . . . . . . Retrieved Matter . | . . . . . . Retrieved Components . | . . . . . . Parts Scanalyzed 1 | . . 1 . . . Part Schematics Acquired 1 | . . 1 . . . Parts Damaged . | . . . . . . Bothacking | -11 -10 -9 -9 -7 -6 ------------ Run | Yrd Mat Mat Min Zio Pro Used RIF Installer . | . . . . . . Robots Hacked . | . . . . . . Non-combat . | . . . . . . Combat . | . . . . . . Robot Hacks Applied . | . . . . . . Relay Couplers Released . | . . . . . . Fabnet Peak Effective % . | . . . . . . Robots Rewired . | . . . . . . Allies Hacked . | . . . . . . Hacks Repelled . | . . . . . . Allies | -11 -10 -9 -9 -7 -6 -------- Run | Yrd Mat Mat Min Zio Pro Total Allies . | . . . . . . Largest Group . | . . . . . . Highest-Rated Group . | . . . . . . Highest-Rated Ally . | . . . . . . Total Orders . | . . . . . . Ally Attacks . | . . . . . . Total Damage . | . . . . . . Kills . | . . . . . . Allies Corrupted . | . . . . . . Allies Melted . | . . . . . . Intel | -11 -10 -9 -9 -7 -6 ------- Run | Yrd Mat Mat Min Zio Pro Active Infowar (turns) 2095 | . . 772 43 950 330 Sensors 20 | . . . . . 20 Structural 2095 | . . 772 43 950 330 Robot Analysis Total . | . . . . . . Derelict Logs Recovered 3 | . . . . 1 2 Drone Launches . | . . . . . . Drone Recoveries . | . . . . . . Exploration | -11 -10 -9 -9 -7 -6 ------------- Run | Yrd Mat Mat Min Zio Pro Turns Passed 2596 | 60 440 773 43 950 330 Spaces Moved 1643 | 46 309 474 22 611 181 Core 3 | 3 . . . . . Treads 562 | 2 . 4 3 522 31 Legs . | . . . . . . Wheels 1078 | 41 309 470 19 89 150 Hover . | . . . . . . Flight . | . . . . . . Fastest Speed 50 | 50 100 115 115 115 115 Average Speed 128 | 99 103 115 121 153 132 Slowest Speed 200 | 160 115 200 160 160 200 Overloaded Moves . | . . . . . . Propulsion Burnouts . | . . . . . . Robots Hopped . | . . . . . . Potential Cave-ins . | . . . . . . Cave-ins Triggered . | . . . . . . Exploration Rate (%) 34 | 4 53 42 6 74 26 Regions Visited 5 Branch Regions 3 Pre-discovered Areas 2 | . 2 . . . . Known Exits Taken 2 | . 1 1 . . . Unknown Exits Taken 3 | 1 . . 1 1 . Scrap Searched 5 | . . . . 3 2 Spaces Dug . | . . . . . . Terrain Destroyed . | . . . . . . Melee . | . . . . . . Projectile . | . . . . . . AOE . | . . . . . . Terrain Rammed . | . . . . . . Walls Destroyed . | . . . . . . Machines Disabled . | . . . . . . Actions | -11 -10 -9 -9 -7 -6 --------- Run | Yrd Mat Mat Min Zio Pro Total 1970 | 57 397 618 29 624 245 Wait 169 | . 61 72 1 1 34 Move 1638 | 45 308 473 21 610 181 Hop . | . . . . . . Pick Up 37 | 6 4 16 . 5 6 Fast Attach 12 | 6 2 . 2 1 1 Attach 8 | . . 4 1 1 2 Detach . | . . . . . . Swap 14 | . 2 5 . 2 5 Drop 16 | . 2 7 . 4 3 Fire 75 | . 17 41 4 . 13 Melee . | . . . . . . Ram 1 | . 1 . . . . Kick . | . . . . . . Crush . | . . . . . . Escape Stasis . | . . . . . . Rewire . | . . . . . . Trap . | . . . . . . Miscellaneous . | . . . . . . Route ------- -11/Scrapyard -10/Materials (discovered 5 exits: *Mat x3 / Min / Sub) -9/Materials (discovered 3 exits: [*Mat] / *Min x2) -9/Mines (discovered 2 exits: [*Mat] / *Zio) -7/Zion -6/Proximity Caves History --------- Turn | Location | Event 10 | -11/Scrapyard | Discovered new exit (range 15) 61 | -11/Scrapyard | Entered Materials 62 | -10/Materials | Met a group of wandering Federalists 136 | -10/Materials | Discovered new exit (range 12) 300 | -10/Materials | Build established: Mutant 309 | -10/Materials | Learned Storage trap positions 343 | -10/Materials | Learned location of Recycling (-8) 365 | -10/Materials | Loaded intel: 12 trap records 377 | -10/Materials | Learned 4 Subcaves zone layouts 379 | -10/Materials | Learned location of Subcaves (-10) 393 | -10/Materials | Identified exit to Mines 412 | -10/Materials | Discovered new exit (range 12) 416 | -10/Materials | Identified exit to Materials 416 | -10/Materials | Identified exit to Subcaves 501 | -10/Materials | Entered another Materials area 501 | -9/Materials | Evolved 2 slots: Utility x2 502 | -9/Materials | Identified exit to Mines 593 | -9/Materials | Central database locked down 799 | -9/Materials | Repaired Broken Lgt. Treads+ 997 | -9/Materials | Discovered new exit (range 7) 1257 | -9/Materials | Discovered exit to Mines (range 16) 1274 | -9/Materials | Entered Mines 1275 | -9/Mines | A Derelict revealed a hidden shortcut to a safe place 1285 | -9/Mines | Discovered new exit (range 4) 1314 | -9/Mines | Core integrity fell below 50% 1317 | -9/Mines | Entered Zion 1575 | -7/Zion | Learned Factory emergency access door positions 1641 | -7/Zion | Found CR-A16's Pointy Stick 2010 | -7/Zion | Found Prototype Launcher 2010 | -7/Zion | Identified Rocket Array 2258 | -7/Zion | Discovered new exit (range 8) 2267 | -7/Zion | Entered Proximity Caves 2277 | -6/Proximity Caves | Learned Factory stockpile data 2375 | -6/Proximity Caves | Core integrity fell below 20% 2416 | -6/Proximity Caves | Lost 3 parts (2p1n) 2518 | -6/Proximity Caves | Learned Factory terminal intel 2591 | -6/Proximity Caves | Attracted the attention of an 0b10 checkpoint 2597 | -6/Proximity Caves | Destroyed by S-27 Virus with Autogun Last Messages --------------- 02395_ Acquired 15 matter. 02397_ Dropped Imp. Terrain Scan Processor. 02398_ Acquired Adv. Heat Sink. 02404_ Dropped Heat Sink. 02405_ Acquired Imp. Terrain Scan Processor. 02414_ Acquired 10 matter. 02518_ Acquired derelict log, extracted data. Data stored: Factory terminal intel. 02536_ Acquired Lgt. Angular Momentum Engine. 02570_ Searching scrap... 02570_ Found Mak. Hover Unit. 02570_ Found Imp. Medium Armor Plating. 02570_ Found Lrg. Storage Unit. 02570_ Found 34 Matter. 02571_ Acquired 10 matter. 02573_ Acquired Imp. Medium Armor Plating. 02577_ Discarded Targeting Computer. 02578_ Acquired Mak. Hover Unit. 02579_ Acquired 10 matter. 02591_ Y-54 Guardian: "INTERCEPTING UNREGISTERED DERELICT." Map ----- +----------------------------------------------------+ | ##??????????????? ##??????????????????? | | ## ####????????????? ###?????????????????? | | ###### ####????????????? ###?????????????????? | | ######### ##???????????? ###????????????????? | | ######### #########???? ####???????????????? | | ??#### ############# ###???????????????? | | ??### ##### ####?????????????? | | ?### ## ####?????????????? | | ### ##### ???????????? | | ## ## ##### ???????????? | | # #### ##### ##### ##?????????????? | | # ##### #### ###### #?????????????? | | ## ###?## ### ##### ???????????????????? | | ########### ###??????????????????????? | | ########## ##???????????????????????? | | ??### ##### ###???????????????????????? | | ??## ###### ####???????????????????????? | | ??## ## ##?#### ########???????????????????? | | ??### ##?#### #########??????????????????? | | ??#### ## ##?## #### ### ?????????????????? | | ???####### ##?### ### % ## ?????????????????? | | ????####### ###?### ! ##?????????????????? | | ????????#######??## ###?????????????????? | | ?????????#####??### ######?????????????????? | | ????????????????### # #####??????????????????? | | ???????????????### ## @##?????????????????????? | | ??????????????### ### ##?????????????????????? | | ?????????????### ###s ##?????????????????????? | | ?????????????## ##ss##?????????????????????? | | ?????????????### ###### ?????????????????????? | | ?????????????### #### ????????????????????? | | ?????????????? # ????? ##?????????????????? | | ?????????????? ???? s ###????????????????? | | ?????????????? ????? ## ##????????????????? | | ????????????? ???? ## ?##????????????????? | | ????????????? ?????? ### ????????????????? | | ???????????? ????? #### ????????????????? | | ??????????? ?????? ###?? # ???????????????? | | ??????????????????? ##???? ## ??????????????? | | ??????????????????? ?????? ## ???????????????? | | ???????????????????????????? ##??????????????????? | | ?????????????????????????????????????????????????? | | ?????????????????????????????????????????????????? | | ?????????????????????????????????????????????????? | | ?????????????????????????????????????????????????? | | ?????????????????????????????????????????????????? | | ?????????????????????????????????????????????????? | | ?????????????????????????????????????????????????? | | ?????????????????????????????????????????????????? | | ?????????????????????????????????????????????????? | +----------------------------------------------------+ Best States ------------- Heat Dissipation 38 Energy Generation 18 Energy Capacity 265 Matter Stores 300 Matter Capacity 300 Sight Range 16 Robot Scan Range 14 Terrain Scan Density 10 Evasion (%) 40 Targeting Accuracy 5 Recoil Reduction 2 Offensive Hacking 10 Item Schematics ----------------- Lrg. Storage Unit | -9/Materials | Scanalyzed Riot Gun | -7/Zion | Free Battle Cannon | -7/Zion | Free Flamer | -7/Zion | Free Beamcaster | -7/Zion | Free Enh. Flamer | -7/Zion | Free Arc Thrower | -7/Zion | Free Bore Cannon | -7/Zion | Free Corruption Screen | -7/Zion | Archive Lgt. Angular Momentum Engine | -7/Zion | Archive Imp. Trap Scanner | -7/Zion | Archive Gatling Laser | -7/Zion | Archive Remote Shield | -7/Zion | Archive Xenon Bombardment Thruster | -7/Zion | Archive Imp. Weapon Cycler | -7/Zion | Archive Adv. Hacking Suite | -7/Zion | Archive Imp. Cooling System | -7/Zion | Archive Force Field | -7/Zion | Archive Med. Reactive Plating | -7/Zion | Archive Imp. Particle Charger | -7/Zion | Archive Energy Filter | -7/Zion | Archive Energy Well | -7/Zion | Archive Robot Schematics ------------------ G-47 Trooper | -7/Zion | Archive M-14 Sweeper | -7/Zion | Archive X-62 Marksman | -7/Zion | Archive Fabricated ------------ Nothing Repaired ---------- Lgt. Treads | 37% | -9/Materials | Broken Studied --------- Lgt. Treads | -9/Materials | Hacked Med. Laser | -9/Materials | Hacked Sml. Laser | -9/Materials | Hacked Alien Tech Used ----------------- None Achievements -------------- None Challenges ------------ None Game ------ Seed BlanketPartitionBay Manual? 0 Play Time 00:24:56 Cumulative 211.2 hours Start 2025.11.24 @ 17:16:26 End 2025.11.26 @ 08:26:57 Sessions 1 Manual Loads 0 Difficulty Rogue Special Mode None Game No. 273 Rogue 229 Adventurer 4 Explorer 40 Win Type - Total 8 Types 7/1/0/0/0/0/0/0/0/0 Lore% 31 Gallery% 61 Achievement% 36 Wizard Run 0 Options --------- Layout 0 ASCII 0 Keyboard 0 Movement Numpad Keybinds 0 Fullscreen 1 Font 24/Smallcaps Map View 76x50 Zoom Use 0% Tactical HUD 1 Map Filters NONE Filters NONE Steam 1 RUN: c4dbebdf-ce2f-4d41-91e1-1adad5804b8e